fUST/lending_fUST_20250320
["ID","MTS","AMOUNT","RATE_DAILY","PERIOD"]
[356410897,1742417432668,-962.22155946,0.00024948,2]
[356410898,1742417432677,-500.0,0.00025093,2]
[356410899,1742417432687,-503.48350354,0.00025108,2]
[356410900,1742417432696,-500.0,0.00025108,2]
[356410901,1742417432706,-500.0,0.00025108,2]
[356410902,1742417432716,-500.0,0.00025108,2]
[356410903,1742417432725,-11759.35201607,0.00025693,4]
[356410904,1742417432736,-175.4082,0.0002595,2]
[356410905,1742417432746,-500.0,0.0002605,2]
[356410906,1742417432755,-500.0,0.0002605,2]
[356410907,1742417432765,-495.37634926,0.0002605,2]
[356410908,1742417432775,-418.05504121,0.0002605,2]
[356410909,1742417432784,-500.0,0.0002605,2]
[356410910,1742417432793,-500.0,0.0002605,2]
[356410911,1742417432803,-500.0,0.0002605,2]
[356410912,1742417432813,-500.0,0.0002605,2]
[356410913,1742417432822,-500.0,0.0002605,2]
[356410914,1742417432832,-500.0,0.0002605,2]
[356410915,1742417432842,-500.0,0.0002605,2]
[356410916,1742417432850,-500.0,0.0002605,2]
[356410917,1742417432860,-500.0,0.0002605,2]
[356410918,1742417432870,-500.0,0.0002605,2]
[356410919,1742417432880,-500.0,0.0002605,2]
[356410920,1742417432890,-500.0,0.0002605,2]
[356410921,1742417432899,-500.0,0.0002605,2]
[356410922,1742417432908,-500.0,0.0002605,2]
[356410923,1742417432918,-500.0,0.0002605,2]
[356410924,1742417433073,-398.36704588,0.0002605,2]
[356410925,1742417433089,-420.0,0.00026288,2]
[356410926,1742417433099,-300.0,0.000263,12]
[356410927,1742417433109,-500.0,0.00026389,2]
[356410928,1742417433119,-11759.35201607,0.00026486,4]
[356410929,1742417433129,-175.4082,0.00027051,2]
[356410930,1742417433138,-11759.35201607,0.00027279,4]
[356410931,1742417433148,-300.0,0.000278,13]
[356410932,1742417433158,-185132.306299,0.00027925,2]
[356410933,1742417433168,-291.92601801,0.0002798,2]
[356410934,1742417433177,-154.73,0.00028,7]
[356410935,1742417433187,-11759.35201607,0.00028072,5]
[356410936,1742417433196,-175.4082,0.00028151,2]
[356410937,1742417433206,-2200.0,0.00028275,2]
[356410938,1742417433215,-587.0,0.000285,2]
[356410939,1742417433225,-540.0,0.00028533,2]
[356410940,1742417433236,-1914.0,0.00028533,2]
[356410941,1742417433246,-1012.199,0.00028533,2]
[356410942,1742417433255,-500.0,0.00028692,2]
[356410943,1742417433266,-11759.35201607,0.00028866,5]
[356410944,1742417433275,-300.0,0.000293,14]
[356410945,1742417433285,-179.62279214,0.00029556,3]
[356410946,1742417433295,-11759.35201607,0.00029659,5]
[356410947,1742417433304,-185132.306299,0.000302,2]
[356410948,1742417433314,-11759.35201607,0.00030452,5]
[356410949,1742417433324,-1000.0,0.00030587,5]
[356410950,1742417433333,-500.0,0.00030587,5]
[356410951,1742417433343,-300.0,0.000308,15]
[356410952,1742417433352,-823.0,0.00030899,2]
[356410953,1742417433363,-291.92601801,0.00031161,2]
[356410954,1742417433373,-11759.35201607,0.00031245,5]
[356410955,1742417433383,-1000.0,0.00031529,5]
[356410956,1742417433393,-1000.0,0.00031529,5]
[356410957,1742417433402,-1000.0,0.00031529,5]
[356410958,1742417433412,-1000.0,0.00031529,5]
[356410959,1742417433422,-591.13950299,0.00032,7]
[356410960,1742417433432,-11759.35201607,0.00032038,6]
[356410961,1742417433451,-300.0,0.000323,16]
[356410962,1742417433463,-154.73,0.000323,7]
[356410963,1742417433474,-500.0,0.00032486,2]
[356410964,1742417433485,-11759.35201607,0.00032831,6]
[356410965,1742417433495,-185132.306299,0.00033235,2]
[356410966,1742417433506,-1068.98,0.000335,7]
[356410967,1742417433517,-784.0,0.000335,2]
[356410968,1742417433528,-155.089081,0.00033598,3]
[356410969,1742417433540,-11759.35201607,0.00033624,6]
[356410970,1742417433550,-575.0,0.000338,17]
[356410971,1742417433562,-155.089081,0.000338,17]
[356410972,1742417433573,-291.92601801,0.00034342,2]
[356410973,1742417433583,-11759.35201607,0.00034417,6]
[356410974,1742417433594,-11759.35201607,0.0003521,7]
[356410975,1742417433604,-500.0,0.0003534,5]
[356410976,1742417433614,-500.0,0.0003534,5]
[356410977,1742417433624,-500.0,0.0003534,5]
[356410978,1742417433634,-500.0,0.0003552,2]
[356410979,1742417433643,-500.0,0.0003589,2]
[356410980,1742417433653,-11759.35201607,0.00036003,7]
[356410981,1742417433663,-185132.306299,0.0003619,3]
[356410982,1742417433674,-545.36542403,0.00036199,2]
[356410983,1742417433684,-8687.84221924,0.000362,98]
[356410984,1742417433694,-8687.84221924,0.000362,98]
[356410985,1742417433704,-8687.84221924,0.000362,98]
[356410986,1742417433714,-151.0,0.00036236,2]
[356410987,1742417433724,-1000.0,0.00036236,2]
[356410988,1742417433735,-536.2536792,0.00036257,15]
[356410989,1742417433746,-24470.4866032,0.00036258,2]
[356410990,1742417433757,-155.089081,0.00036571,4]
[356410991,1742417433767,-156.587,0.00036784,2]
[356410992,1742417433777,-11759.35201607,0.00036797,7]
[356410993,1742417433787,-330.7695246,0.00037332,2]
[356410994,1742417433797,-291.92601801,0.00037523,2]
[356410995,1742417433807,-11759.35201607,0.0003759,7]
[356410996,1742417433817,-1000.0,0.00037605,2]
[356410997,1742417433827,-11759.35201607,0.00038383,8]
[356410998,1742417433837,-11759.35201607,0.00039176,8]
[356410999,1742417433847,-500.0,0.00039456,5]
[356411000,1742417433858,-1000.0,0.000396,45]
[356411001,1742417433869,-11759.35201607,0.00039969,8]
[356411002,1742417433879,-173.45859824,0.0004011,7]
[356411003,1742417433890,-4054.13,0.00040154,120]
[356411004,1742417433901,-9875.926703,0.00040155,25]
[356411005,1742417433912,-500.0,0.00040173,5]
[356411006,1742417433923,-500.0,0.00040173,5]
[356411007,1742417433934,-500.0,0.00040173,5]
[356411008,1742417433944,-500.0,0.00040173,5]
[356411009,1742417433955,-500.0,0.00040173,5]
[356411010,1742417433964,-500.0,0.00040173,5]
[356411011,1742417433975,-500.0,0.00040173,5]
[356411012,1742417433987,-500.0,0.00040173,5]
[356411013,1742417434004,-222000.0,0.00040179,2]
[356411014,1742417434024,-1500.0,0.00040606,5]
[356411015,1742417434037,-291.92601801,0.00040704,28]
[356411016,1742417434048,-11759.35201607,0.00040762,8]
[356411017,1742417434059,-1000.0,0.00040819,5]
[356411018,1742417434069,-1000.0,0.00040819,5]
[356411019,1742417434079,-4054.13,0.00040976,120]
[356411020,1742417434089,-8687.84221924,0.0004119,120]
[356411021,1742417434099,-500.0,0.00041211,2]
[356411022,1742417434110,-600.0,0.0004128,2]
[356411023,1742417434121,-1400.0,0.00041324,60]
[356411024,1742417434130,-1500.0,0.00041548,10]
[356411025,1742417434140,-1500.0,0.00041548,10]
[356411026,1742417434150,-1500.0,0.00041548,10]
[356411027,1742417434161,-1500.0,0.00041548,10]
[356411028,1742417434171,-11759.35201607,0.00041555,9]
[356411029,1742417434182,-1446.9222302,0.00041616,4]
[356411030,1742417434192,-600.0,0.0004171,2]
[356411031,1742417434202,-4054.13,0.00041798,120]
[356411032,1742417434212,-1400.0,0.00041872,60]
[356411033,1742417434222,-200.0,0.0004202,61]
[356411034,1742417434231,-600.0,0.0004214,2]
[356411035,1742417434241,-890.81,0.000423,14]
[356411036,1742417434251,-11759.35201607,0.00042348,9]
[356411037,1742417434262,-1400.0,0.0004242,60]
[356411038,1742417434272,-155.089081,0.00042486,5]
[356411039,1742417434282,-600.0,0.0004257,2]
[356411040,1742417434292,-4054.13,0.0004262,120]
[356411041,1742417434302,-1013.14708138,0.0004262,53]
[356411042,1742417434312,-1013.14708138,0.0004272,50]
[356411043,1742417434322,-1013.14708138,0.0004282,59]
[356411044,1742417434332,-272936.934,0.0004289,120]
[356411045,1742417434342,-150.0,0.000429,120]
[356411046,1742417434352,-151.0,0.00042903,2]
[356411047,1742417434362,-1013.14708138,0.0004292,32]
[356411048,1742417434371,-1486.03920513,0.00042947,54]
[356411049,1742417434381,-1400.0,0.00042968,60]
[356411050,1742417434391,-500.0,0.00042973,10]
[356411051,1742417434402,-500.0,0.00042973,7]
[356411052,1742417434412,-230249.85569607,0.00043,7]
[356411053,1742417434421,-429377.65548977,0.00043,7]
[356411054,1742417434431,-192.0,0.00043,120]
[356411055,1742417434441,-160.0,0.00043,7]
[356411056,1742417434450,-250.0,0.00043,14]
[356411057,1742417434460,-317.0,0.00043,14]
[356411058,1742417434470,-317.0,0.00043,14]
[356411059,1742417434481,-317.0,0.00043,14]
[356411060,1742417434490,-317.0,0.00043,14]
[356411061,1742417434500,-317.0,0.00043,14]
[356411062,1742417434509,-317.0,0.00043,14]
[356411063,1742417434519,-317.0,0.00043,14]
[356411064,1742417434529,-317.0,0.00043,14]
[356411065,1742417434539,-317.0,0.00043,14]
[356411066,1742417434549,-322.36067826,0.00043,14]
[356411067,1742417434560,-151.0,0.00043,120]
[356411068,1742417434570,-151.0,0.00043,120]
[356411069,1742417434580,-600.0,0.00043,2]
[356411070,1742417434590,-1013.14708138,0.0004302,67]
[356411071,1742417434599,-1013.14708138,0.0004312,44]
[356411072,1742417434609,-11759.35201607,0.00043141,9]
[356411073,1742417434619,-160.0,0.00043143,5]
[356411074,1742417434629,-1013.14708138,0.0004322,54]
[356411075,1742417434638,-1013.14708138,0.0004332,78]
[356411076,1742417434649,-155.089081,0.00043381,2]
[356411077,1742417434659,-200.0,0.00043384,120]
[356411078,1742417434670,-200.0,0.00043412,120]
[356411079,1742417434680,-1013.14708138,0.0004342,87]
[356411080,1742417434690,-500.0,0.00043423,16]
[356411081,1742417434700,-200.0,0.00043424,120]
[356411082,1742417434710,-200.0,0.00043429,120]
[356411083,1742417434720,-797.99846631,0.0004343,2]
[356411084,1742417434731,-4054.13,0.00043442,120]
[356411085,1742417434741,-150.0,0.00043473,7]
[356411086,1742417434751,-47571.14426741,0.00043499,2]
[356411087,1742417434760,-251383.74616673,0.00043499,2]
[356411088,1742417434770,-346109.0576857,0.000435,120]
[356411089,1742417434780,-160.0,0.00043513,2]
[356411090,1742417434790,-1400.0,0.00043516,60]
[356411091,1742417434799,-1013.14708138,0.0004352,44]
[356411092,1742417434809,-200.0,0.00043558,120]
[356411093,1742417434819,-200.0,0.0004356,120]
[356411094,1742417434829,-200.0,0.00043574,120]
[356411095,1742417434838,-200.0,0.00043593,120]
[356411096,1742417434848,-1013.14708138,0.0004362,31]
[356411097,1742417434858,-203.0,0.0004363,30]
[356411098,1742417434867,-200.0,0.00043698,120]
[356411099,1742417434877,-500.0,0.00043716,16]
[356411100,1742417434886,-1013.14708138,0.0004372,79]
[356411101,1742417434896,-1013.14708138,0.0004382,30]
[356411102,1742417434906,-594.58508349,0.00043835,120]
[356411103,1742417434916,-500.0,0.00043836,120]
[356411104,1742417434925,-500.0,0.00043836,120]
[356411105,1742417434935,-500.0,0.00043836,120]
[356411106,1742417434944,-500.0,0.00043836,120]
[356411107,1742417434954,-500.0,0.00043836,120]
[356411108,1742417434964,-500.0,0.00043836,120]
[356411109,1742417434973,-500.0,0.00043836,120]
[356411110,1742417434983,-500.0,0.00043836,120]
[356411111,1742417434993,-188.01,0.00043836,120]
[356411112,1742417435004,-500.0,0.00043836,60]
[356411113,1742417435015,-500.0,0.00043836,60]
[356411114,1742417435025,-500.0,0.00043836,60]
[356411115,1742417435179,-151.0,0.0004384,120]
[356411116,1742417435189,-155.125516,0.0004384,120]
[356411117,1742417435200,-692.29817,0.0004384,30]
[356411118,1742417435209,-692.29817,0.0004384,30]
[356411119,1742417435219,-151.0,0.0004384,120]
[356411120,1742417435228,-151.0,0.0004384,120]
[356411121,1742417435238,-151.0,0.0004384,120]
[356411122,1742417435248,-151.0,0.0004384,120]
[356411123,1742417435257,-210.10219781,0.0004384,120]
[356411124,1742417435267,-210.1,0.0004384,120]
[356411125,1742417435276,-163.41282052,0.0004384,120]
[356411126,1742417435286,-163.41282052,0.0004384,120]
[356411127,1742417435296,-163.41282052,0.0004384,120]
[356411128,1742417435305,-163.41282052,0.0004384,120]
[356411129,1742417435315,-163.41282052,0.0004384,120]
[356411130,1742417435325,-163.41,0.0004384,120]
[356411131,1742417435335,-809.93417157,0.0004384,120]
[356411132,1742417435344,-809.93417157,0.0004384,120]
[356411133,1742417435354,-809.93417157,0.0004384,120]
[356411134,1742417435363,-809.93417157,0.0004384,120]
[356411135,1742417435372,-809.93417157,0.0004384,120]
[356411136,1742417435382,-809.93417157,0.0004384,120]
[356411137,1742417435391,-809.93417157,0.0004384,120]
[356411138,1742417435401,-809.93417157,0.0004384,120]
[356411139,1742417435411,-809.93417157,0.0004384,120]
[356411140,1742417435420,-809.93417157,0.0004384,120]
[356411141,1742417435430,-809.93417157,0.0004384,120]
[356411142,1742417435440,-809.93417157,0.0004384,120]
[356411143,1742417435450,-809.93417157,0.0004384,120]
[356411144,1742417435460,-809.93417157,0.0004384,120]
[356411145,1742417435470,-809.93417157,0.0004384,120]
[356411146,1742417435481,-809.93417157,0.0004384,120]
[356411147,1742417435491,-809.93417157,0.0004384,120]
[356411148,1742417435500,-809.93417157,0.0004384,120]
[356411149,1742417435510,-809.93417157,0.0004384,120]
[356411150,1742417435520,-809.93,0.0004384,120]
[356411151,1742417435529,-1889.84640033,0.0004384,120]
[356411152,1742417435539,-1889.84640033,0.0004384,120]
[356411153,1742417435549,-1889.84640033,0.0004384,120]
[356411154,1742417435559,-1889.84640033,0.0004384,120]
[356411155,1742417435568,-1889.84640033,0.0004384,120]
[356411156,1742417435579,-1889.84640033,0.0004384,120]
[356411157,1742417435589,-1889.84640033,0.0004384,120]
[356411158,1742417435599,-1889.84640033,0.0004384,120]
[356411159,1742417435608,-1889.84640033,0.0004384,120]
[356411160,1742417435618,-1889.84640033,0.0004384,120]
[356411161,1742417435628,-1889.84640033,0.0004384,120]
[356411162,1742417435638,-1889.84640033,0.0004384,120]
[356411163,1742417435648,-1889.84640033,0.0004384,120]
[356411164,1742417435658,-1889.84640033,0.0004384,120]
[356411165,1742417435667,-1889.84640033,0.0004384,120]
[356411166,1742417435676,-1889.84640033,0.0004384,120]
[356411167,1742417435686,-1889.84640033,0.0004384,120]
[356411168,1742417435696,-1889.84640033,0.0004384,120]
[356411169,1742417435706,-1889.84640033,0.0004384,120]
[356411170,1742417435717,-1889.84,0.0004384,120]
[356411171,1742417435727,-303.85298722,0.0004384,120]
[356411172,1742417435738,-303.85298722,0.0004384,120]
[356411173,1742417435748,-303.85298722,0.0004384,120]
[356411174,1742417435757,-303.85298722,0.0004384,120]
[356411175,1742417435766,-303.85298722,0.0004384,120]
[356411176,1742417435776,-303.85298722,0.0004384,120]
[356411177,1742417435785,-303.85298722,0.0004384,120]
[356411178,1742417435795,-303.85298722,0.0004384,120]
[356411179,1742417435804,-303.85298722,0.0004384,120]
[356411180,1742417435814,-303.85298722,0.0004384,120]
[356411181,1742417435823,-303.85298722,0.0004384,120]
[356411182,1742417435833,-303.85298722,0.0004384,120]
[356411183,1742417435843,-303.85298722,0.0004384,120]
[356411184,1742417435852,-303.85298722,0.0004384,120]
[356411185,1742417435861,-303.85298722,0.0004384,120]
[356411186,1742417435871,-303.85298722,0.0004384,120]
[356411187,1742417435881,-303.85298722,0.0004384,120]
[356411188,1742417435890,-303.85298722,0.0004384,120]
[356411189,1742417435901,-303.85298722,0.0004384,120]
[356411190,1742417435911,-303.85,0.0004384,120]
[356411191,1742417435921,-708.99030352,0.0004384,120]
[356411192,1742417435930,-708.99030352,0.0004384,120]
[356411193,1742417435939,-708.99030352,0.0004384,120]
[356411194,1742417435949,-708.99030352,0.0004384,120]
[356411195,1742417435959,-708.99030352,0.0004384,120]
[356411196,1742417435969,-708.99030352,0.0004384,120]
[356411197,1742417435980,-708.99030352,0.0004384,120]
[356411198,1742417435990,-708.99030352,0.0004384,120]
[356411199,1742417436000,-708.99030352,0.0004384,120]
[356411200,1742417436013,-708.99030352,0.0004384,120]
[356411201,1742417436023,-708.99030352,0.0004384,120]
[356411202,1742417436032,-708.99030352,0.0004384,120]
[356411203,1742417436042,-708.99030352,0.0004384,120]
[356411204,1742417436053,-708.99030352,0.0004384,120]
[356411205,1742417436063,-708.99030352,0.0004384,120]
[356411206,1742417436072,-708.99030352,0.0004384,120]
[356411207,1742417436083,-708.99030352,0.0004384,120]
[356411208,1742417436094,-708.99030352,0.0004384,120]
[356411209,1742417436103,-708.99030352,0.0004384,120]
[356411210,1742417436112,-708.99,0.0004384,120]
[356411211,1742417436122,-500.0,0.00043863,60]
[356411212,1742417436132,-500.0,0.00043863,60]
[356411213,1742417436141,-500.0,0.00043863,60]
[356411214,1742417436151,-291.92601801,0.00043885,28]
[356411215,1742417436160,-500.0,0.00043891,60]
[356411216,1742417436169,-500.0,0.00043891,60]
[356411217,1742417436179,-500.0,0.00043891,60]
[356411218,1742417436189,-782.6226429,0.000439,120]
[356411219,1742417436198,-200.0,0.00043903,120]
[356411220,1742417436208,-500.0,0.00043918,60]
[356411221,1742417436217,-500.0,0.00043918,60]
[356411222,1742417436227,-1013.14708138,0.0004392,90]
[356411223,1742417436237,-11759.35201607,0.00043934,9]
[356411224,1742417436247,-500.0,0.00043946,60]
[356411225,1742417436256,-500.0,0.00043946,60]
[356411226,1742417436266,-350000.0,0.00044,30]
[356411227,1742417436276,-7021.86686217,0.00044,30]
[356411228,1742417436286,-1967.06556178,0.00044,30]
[356411229,1742417436295,-671.51403431,0.00044,120]
[356411230,1742417436305,-2000.0,0.00044,30]
[356411231,1742417436315,-200.0,0.00044,120]
[356411232,1742417436325,-60061.0,0.00044,120]
[356411233,1742417436334,-50000.0,0.00044,2]
[356411234,1742417436344,-50000.0,0.00044,2]
[356411235,1742417436354,-50000.0,0.00044,2]
[356411236,1742417436363,-50000.0,0.00044,2]
[356411237,1742417436372,-55500.0,0.00044,5]
[356411238,1742417436384,-5000.0,0.00044,30]
[356411239,1742417436393,-17497.46892923,0.00044,120]
[356411240,1742417436402,-500.78176081,0.00044,2]
[356411241,1742417436412,-2000.00000099,0.00044,120]
[356411242,1742417436422,-151.0,0.00044,120]
[356411243,1742417436431,-692.29817,0.00044,30]
[356411244,1742417436441,-692.29817,0.00044,30]
[356411245,1742417436450,-151.0,0.00044,120]
[356411246,1742417436460,-151.0,0.00044,120]
[356411247,1742417436470,-151.0,0.00044,120]
[356411248,1742417436479,-151.0,0.00044,120]
[356411249,1742417436489,-200.0,0.00044012,120]
[356411250,1742417436498,-1013.14708138,0.0004402,99]
[356411251,1742417436507,-250.0,0.00044021,7]
[356411252,1742417436516,-200.0,0.00044063,120]
[356411253,1742417436525,-1400.0,0.00044064,120]
[356411254,1742417436535,-154.73,0.000441,30]
[356411255,1742417436544,-1013.14708138,0.0004412,96]
[356411256,1742417436553,-200.0,0.00044124,120]
[356411257,1742417436562,-200.0,0.0004415,120]
[356411258,1742417436571,-200.0,0.00044164,120]
[356411259,1742417436581,-500.0,0.000442,120]
[356411260,1742417436590,-48742.80989956,0.000442,120]
[356411261,1742417436599,-1013.14708138,0.0004422,90]
[356411262,1742417436608,-151.0,0.00044264,120]
[356411263,1742417436617,-151.0,0.00044264,120]
[356411264,1742417436626,-188.788258,0.00044264,120]
[356411265,1742417436635,-4054.13,0.00044264,120]
[356411266,1742417436644,-200.0,0.00044269,120]
[356411267,1742417436654,-151.0,0.00044278,120]
[356411268,1742417436663,-200.0,0.00044307,120]
[356411269,1742417436672,-200.0,0.00044312,120]
[356411270,1742417436682,-692.29817,0.00044312,30]
[356411271,1742417436691,-692.29817,0.00044312,30]
[356411272,1742417436700,-546.97,0.00044314,30]
[356411273,1742417436711,-1013.14708138,0.0004432,95]
[356411274,1742417436723,-179.62279214,0.00044334,30]
[356411275,1742417436733,-1013.14708138,0.0004442,97]
[356411276,1742417436742,-200.0,0.00044427,120]
[356411277,1742417436757,-2000.0,0.000445,30]
[356411278,1742417436768,-500.0,0.000445,120]
[356411279,1742417436777,-500.0,0.000445,120]
[356411280,1742417436786,-500.0,0.000445,120]
[356411281,1742417436795,-500.0,0.000445,120]
[356411282,1742417436804,-500.0,0.000445,120]
[356411283,1742417436813,-2000.0,0.000445,120]
[356411284,1742417436822,-500.0,0.000445,120]
[356411285,1742417436831,-1000.0,0.000445,120]
[356411286,1742417436840,-1000.0,0.000445,120]
[356411287,1742417436851,-1000.0,0.000445,120]
[356411288,1742417436860,-2000.0,0.000445,120]
[356411289,1742417436869,-151.0,0.000445,120]
[356411290,1742417436878,-1013.14708138,0.0004452,98]
[356411291,1742417437007,-200.0,0.00044528,120]
[356411292,1742417437018,-450.0,0.00044568,7]
[356411293,1742417437027,-1400.0,0.00044612,120]
[356411294,1742417437037,-1013.14708138,0.0004462,91]
[356411295,1742417437050,-200.0,0.00044642,120]
[356411296,1742417437059,-200.0,0.00044683,120]
[356411297,1742417437069,-1013.14708138,0.0004472,95]
[356411298,1742417437078,-6691.01172547,0.00044728,10]
[356411306,1742417439943,-175.4082,0.00029252,2]
[356411307,1742417439959,-175.4082,0.00030352,2]
[356411308,1742417439974,-172.0836,0.00044728,10]
[356411309,1742417439998,-760.70198306,0.00044728,10]
[356411310,1742417440020,-1606.81903467,0.00044728,10]
[356411311,1742417440039,-1703.59999997,0.00044728,10]
[356411312,1742417440430,-0.01539315,0.00044728,10]
[356411313,1742417440442,-825.12027975,0.00044728,10]
[356411314,1742417440456,-4235.9717958,0.000448,120]
[356411315,1742417440467,-1013.14708138,0.0004482,92]
[356411316,1742417440477,-521.47669843,0.00044881,120]
[356411317,1742417440487,-12734.26761551,0.000449,120]
[356411318,1742417440496,-5433.91646879,0.000449,120]
[356411319,1742417440506,-50000.0,0.000449,120]
[356411320,1742417440515,-38933.44460283,0.000449,120]
[356411321,1742417440527,-881.05,0.000449,120]
[356411333,1742417442864,-375.37757544,0.00027278,2]
[356411334,1742417442874,-451.13129593,0.000449,120]
[356411370,1742417445847,-596.68495572,0.000449,120]
[356411372,1742417466037,-300.0,0.0003534,5]
[356411373,1742417470742,-300.0,0.000334,7]
[356411374,1742417654446,10000.0,0.0001001,2]
[356411375,1742417666237,5915.0,0.0001001,2]
[356411421,1742418631998,-500.0,0.00024247,120]
[356411423,1742418632009,-184.55,0.000249,2]
[356411425,1742418632019,-250.0,0.00026381,2]
[356411427,1742418632029,-500.0,0.00026416,120]
[356411429,1742418632039,-300.0,0.00026941,2]
[356411431,1742418632048,-8572.0669917,0.00026942,2]
[356411433,1742418632058,-200.0,0.00027,120]
[356411435,1742418632067,-2362.3393578,0.00027014,2]
[356411437,1742418632076,-404.8591,0.00027718,15]
[356411439,1742418632086,-232.10729,0.000283,120]
[356411441,1742418632096,-2200.0,0.00028374,2]
[356411443,1742418632105,-417.89091067,0.0002859,2]
[356411445,1742418632115,-500.0,0.00028608,5]
[356411447,1742418632124,-541.0,0.00028643,2]
[356411449,1742418632134,-1913.0,0.00028643,2]
[356411451,1742418632143,-12266.01058143,0.000289,5]
[356411453,1742418632153,-420.0,0.00029128,2]
[356411455,1742418632162,-500.0,0.00029554,2]
[356411457,1742418632171,-12266.01058129,0.00029555,5]
[356411459,1742418632181,-214.77844396,0.00029832,4]
[356411461,1742418632190,-12266.01058129,0.0003021,5]
[356411463,1742418632200,-12266.01058129,0.00030866,5]
[356411465,1742418632209,-587.0,0.00031493,2]
[356411468,1742418632219,-12266.01058129,0.00031521,6]
[356411471,1742418632229,-12266.01058129,0.00032176,6]
[356411474,1742418632238,-12266.01058129,0.00032831,6]
[356411477,1742418632247,-164.29679324,0.00033264,2]
[356411480,1742418632256,-553.65,0.000334,7]
[356411509,1742418632532,-600.0,0.00033456,2]
[356411511,1742418632542,-590.70360073,0.00033475,7]
[356411513,1742418632551,-148105.845039,0.00033476,2]
[356411515,1742418632561,-12266.01058129,0.00033486,6]
[356411518,1742418632571,-168.54,0.000335,7]
[356411520,1742418632580,-622.2,0.00033511,2]
[356411522,1742418632590,-645.2214,0.00033566,2]
[356411524,1742418632600,-669.0945918,0.00033621,2]
[356411526,1742418632609,-693.8510917,0.00033676,2]
[356411528,1742418632618,-719.52358209,0.00033731,2]
[356411530,1742418632628,-746.14595463,0.00033786,2]
[356411532,1742418632637,-773.75335495,0.00033841,2]
[356411534,1742418632647,-802.38222908,0.00033896,2]
[356411536,1742418632656,-832.07037156,0.00033951,2]
[356411538,1742418632665,-862.8569753,0.00034006,2]
[356411540,1742418632675,-823.0,0.00034049,2]
[356411542,1742418632683,-894.78268339,0.00034061,2]
[356411544,1742418632693,-927.88964268,0.00034116,2]
[356411546,1742418632702,-12266.01058129,0.00034141,6]
[356411548,1742418632711,-962.22155946,0.00034171,2]
[356411549,1742418632721,-997.82375716,0.00034226,2]
[356411551,1742418632730,-1034.74323617,0.00034281,2]
[356411552,1742418632739,-1073.02873591,0.00034336,2]
[356411554,1742418632749,-1112.73079914,0.00034391,2]
[356411556,1742418632759,-1153.9018387,0.00034446,2]
[356411558,1742418632768,-1800.0,0.00034501,2]
[356411559,1742418632779,-12266.01058129,0.00034797,7]
[356411560,1742418632788,-833.92477148,0.00035114,2]
[356411561,1742418632798,-160.0,0.00035131,2]
[356411563,1742418632807,-160.0,0.00035148,2]
[356411565,1742418632817,-160.0,0.0003516,2]
[356411567,1742418632826,-12266.01058129,0.00035452,7]
[356411569,1742418632836,-500.0,0.0003589,2]
[356411571,1742418632845,-148105.845039,0.00036097,3]
[356411573,1742418632855,-12266.01058129,0.00036107,7]
[356411575,1742418632865,-500.0,0.00036199,120]
[356411576,1742418632875,-500.0,0.00036199,120]
[356411578,1742418632884,-1737.56844388,0.000362,98]
[356411579,1742418632894,-1737.56844384,0.000362,98]
[356411580,1742418632903,-500.0,0.00036257,120]
[356411582,1742418632913,-12266.01058129,0.00036762,7]
[356411583,1742418632923,-500.0,0.00036767,5]
[356411584,1742418632932,-500.0,0.00036767,5]
[356411585,1742418632942,-500.0,0.00036767,5]
[356411586,1742418632952,-500.0,0.00036767,5]
[356411587,1742418632961,-500.0,0.00036767,2]
[356411588,1742418632970,-1737.56844384,0.00037144,103]